lending/lending_fUSD_20250323
["ID","MTS","AMOUNT","RATE_DAILY","PERIOD"]
[356588387,1742735461374,-564.6,0.00050684,120]
[356588388,1742735461384,-569.19,0.00050684,120]
[356588389,1742735461394,-500.0,0.00050684,120]
[356588390,1742735461403,-500.0,0.00050684,120]
[356588391,1742735461412,-770.49,0.00050684,120]
[356588392,1742735461422,-500.0,0.00050684,120]
[356588393,1742735461431,-500.0,0.00050684,120]
[356588394,1742735461440,-578.41,0.00050684,120]
[356588395,1742735461449,-657.34,0.00050684,120]
[356588396,1742735461458,-500.0,0.00050684,120]
[356588397,1742735461467,-3577.74,0.00050684,120]
[356588398,1742735461476,-696.03,0.00050684,120]
[356588399,1742735461485,-324.79597522,0.00050684,120]
[356588400,1742735461495,-500.0,0.00050684,120]
[356588401,1742735461505,-500.0,0.00050684,120]
[356588402,1742735461514,-500.0,0.00050684,120]
[356588403,1742735461536,-159.11102661,0.000507,120]
[356588404,1742735461552,-1512.0,0.000507,2]
[356588405,1742735461571,-5000.0,0.0005073,120]
[356588406,1742735461590,-19646.5733895,0.00050847,30]
[356588407,1742735461606,-500.0,0.00050958,120]
[356588408,1742735461625,-500.0,0.00050958,120]
[356588409,1742735461643,-500.0,0.00050958,120]
[356588410,1742735461664,-500.0,0.00050958,120]
[356588411,1742735461682,-500.0,0.00050958,120]
[356588412,1742735461698,-500.0,0.00050958,120]
[356588413,1742735461717,-500.0,0.00050958,120]
[356588414,1742735461732,-753.92,0.00050958,7]
[356588415,1742735461752,-280.469228,0.00050958,120]
[356588416,1742735461765,-500.0,0.00050958,120]
[356588417,1742735461783,-500.0,0.00050958,120]
[356588418,1742735461796,-649.9716116,0.00050958,120]
[356588419,1742735461812,-500.0,0.00050958,30]
[356588420,1742735461826,-500.0,0.00050958,120]
[356588421,1742735461841,-500.02,0.00050958,120]
[356588422,1742735461855,-500.0,0.00050958,120]
[356588423,1742735461870,-674.39,0.00050958,120]
[356588424,1742735461885,-500.0,0.00050958,120]
[356588425,1742735461901,-1247.77,0.00050958,120]
[356588426,1742735461916,-500.0,0.00050958,120]
[356588427,1742735461930,-500.0,0.00050958,120]
[356588428,1742735461945,-500.0,0.00050958,120]
[356588429,1742735461961,-500.0,0.00050958,120]
[356588430,1742735461976,-1166.89,0.00050958,120]
[356588431,1742735461996,-500.0,0.00050958,120]
[356588432,1742735462009,-516.25,0.00050958,120]
[356588433,1742735462019,-2830.21,0.00050958,120]
[356588434,1742735462030,-500.0,0.00050958,120]
[356588435,1742735462039,-500.0,0.00050958,120]
[356588436,1742735462048,-500.0,0.00050958,120]
[356588437,1742735462060,-500.0,0.00050958,120]
[356588438,1742735462070,-7007.31,0.00050958,2]
[356588439,1742735462079,-500.0,0.00050958,120]
[356588440,1742735462089,-500.0,0.00050958,120]
[356588441,1742735462099,-500.0,0.00050958,120]
[356588442,1742735462108,-988.69,0.00050958,120]
[356588443,1742735462118,-1259.58,0.00050958,120]
[356588444,1742735462127,-701.86,0.00050958,120]
[356588445,1742735462137,-565.34992597,0.00050958,120]
[356588446,1742735462148,-500.0,0.00050958,120]
[356588447,1742735462160,-500.0,0.00050958,120]
[356588448,1742735462170,-500.0,0.00050958,120]
[356588449,1742735462180,-500.0,0.00050958,120]
[356588450,1742735462190,-500.0,0.00050958,120]
[356588451,1742735462199,-500.0,0.00050958,120]
[356588452,1742735462208,-500.0,0.00050958,120]
[356588453,1742735462218,-500.0,0.00050958,120]
[356588454,1742735462228,-500.0,0.00050958,120]
[356588455,1742735462237,-693.6,0.00050958,120]
[356588456,1742735462247,-500.0,0.00050958,120]
[356588457,1742735462472,-647.48,0.00050958,120]
[356588458,1742735462486,-500.0,0.00050958,120]
[356588459,1742735462497,-1130.06,0.00050958,100]
[356588460,1742735462506,-500.0,0.00050958,120]
[356588461,1742735462516,-798.51,0.00050958,120]
[356588462,1742735462525,-500.0,0.00050958,120]
[356588463,1742735462536,-420.62041252,0.00050958,120]
[356588464,1742735462545,-538.71,0.00050958,120]
[356588465,1742735462555,-1121.42,0.00050958,120]
[356588466,1742735462564,-631.8,0.00050958,120]
[356588467,1742735462574,-500.0,0.00050958,120]
[356588468,1742735462584,-500.0,0.00050958,120]
[356588469,1742735462594,-1260.79,0.00050958,120]
[356588470,1742735462603,-500.0,0.00050958,120]
[356588471,1742735462614,-454.72084802,0.00050958,120]
[356588472,1742735462623,-500.0,0.00050958,120]
[356588473,1742735462632,-500.0,0.00050958,120]
[356588474,1742735462642,-564.6,0.00050958,120]
[356588475,1742735462651,-569.19,0.00050958,120]
[356588476,1742735462662,-500.0,0.00050958,120]
[356588477,1742735462672,-500.0,0.00050958,120]
[356588478,1742735462681,-770.49,0.00050958,120]
[356588479,1742735462692,-500.0,0.00050958,120]
[356588480,1742735462702,-500.0,0.00050958,120]
[356588481,1742735462712,-578.41,0.00050958,120]
[356588482,1742735462722,-657.34,0.00050958,120]
[356588483,1742735462732,-500.0,0.00050958,120]
[356588484,1742735462742,-3577.74,0.00050958,120]
[356588485,1742735462751,-696.03,0.00050958,120]
[356588486,1742735462761,-500.0,0.00050958,120]
[356588487,1742735462771,-500.0,0.00050958,120]
[356588488,1742735462780,-500.0,0.00050958,120]
[356588489,1742735462790,-1000.0,0.00050999,120]
[356588490,1742735462800,-50000.0,0.00051,51]
[356588491,1742735462809,-161.62357183,0.00051,2]
[356588492,1742735462818,-889.01107537,0.00051,120]
[356588493,1742735462828,-14956.70506253,0.00051,120]
[356588494,1742735462878,-985043.29493747,0.00051,120]
[356588495,1742735462887,-36476.70506253,0.00051,120]
[356588496,1742735462906,-151.0,0.000419,2]
[356588497,1742735462915,-507.53,0.00051,120]
[356588498,1742735462939,-1870.08,0.00051,120]
[356588499,1742735462951,-1000.0,0.00051,120]
[356588500,1742735462962,-295.95831041,0.00051,120]
[356588501,1742735462973,-483.05887267,0.00051,120]
[356588502,1742735462988,-900.0,0.00051,120]
[356588503,1742735463000,-4513.07117695,0.00051,120]
[356588504,1742735463011,-364.13460808,0.00051,120]
[356588505,1742735463024,-881.66184815,0.00051,120]
[356588506,1742735463329,-1115.0,0.000119,2]
[356588507,1742735463340,-150.99,0.00012893,2]
[356588508,1742735463349,-438.585,0.000149,2]
[356588509,1742735463361,-490.31520008,0.000149,2]
[356588510,1742735463378,-186.09979992,0.000149,2]
[356588511,1742735463388,-459.63286642,0.000179,2]
[356588512,1742735463481,-580.32,0.000179,2]
[356588513,1742735463493,-75.04713358,0.000179,2]
[356588514,1742735463503,-255.722894,0.000209,2]
[356588515,1742735463515,-300.43280001,0.000209,2]
[356588516,1742735463526,-558.84430599,0.000209,2]
[356588517,1742735463535,-1115.0,0.000239,2]
[356588518,1742735463545,-1115.0,0.000269,2]
[356588519,1742735463555,-1115.0,0.000299,2]
[356588520,1742735463565,-1115.0,0.000329,2]
[356588521,1742735463574,-1115.0,0.000359,2]
[356588522,1742735463584,-4016.87471582,0.0003885,2]
[356588523,1742735463595,-768.48623998,0.0003885,2]
[356588524,1742735463607,-21225.00000001,0.0003885,2]
[356588525,1742735463619,-906.90842869,0.0003885,2]
[356588526,1742735464353,-153.0,0.00017848,2]
[356588527,1742735464363,-1942.110642,0.0003885,2]
[356588528,1742735464380,-153.0,0.00017848,2]
[356588529,1742735464390,-20108.86860332,0.0003885,2]
[356588530,1742735464399,-495.5,0.000389,2]
[356588531,1742735464409,-952707.80012121,0.00051,120]
[356588532,1742735464419,-150.8486465,0.00051,30]
[356588533,1742735464429,-40145.0435027,0.00051,30]
[356588534,1742735464438,-1000.0,0.00051,120]
[356588535,1742735464448,-1250.0,0.00051,2]
[356588536,1742735464458,-390.68927681,0.000511,5]
[356588537,1742735464468,-400.0,0.0005117,7]
[356588538,1742735464477,-500.0,0.00051232,120]
[356588539,1742735464486,-500.0,0.00051232,120]
[356588540,1742735464496,-527.68425543,0.00051232,120]
[356588541,1742735464505,-500.0,0.00051232,120]
[356588542,1742735464515,-500.0,0.00051232,120]
[356588543,1742735464524,-500.0,0.00051232,120]
[356588544,1742735464534,-500.0,0.00051232,120]
[356588545,1742735464543,-753.92,0.00051232,7]
[356588546,1742735464553,-280.469228,0.00051232,120]
[356588547,1742735464562,-500.0,0.00051232,120]
[356588548,1742735464571,-500.0,0.00051232,120]
[356588549,1742735464581,-500.0,0.00051232,30]
[356588550,1742735464590,-500.0,0.00051232,120]
[356588551,1742735464600,-500.02,0.00051232,120]
[356588552,1742735464609,-500.0,0.00051232,120]
[356588553,1742735464619,-674.39,0.00051232,120]
[356588554,1742735464628,-500.0,0.00051232,120]
[356588555,1742735464638,-1247.77,0.00051232,120]
[356588556,1742735464647,-500.0,0.00051232,120]
[356588557,1742735464656,-500.0,0.00051232,120]
[356588558,1742735464665,-481.71362565,0.00051232,120]
[356588559,1742735464675,-2830.21,0.00051232,120]
[356588560,1742735464684,-500.0,0.00051232,120]
[356588561,1742735464694,-500.0,0.00051232,120]
[356588562,1742735464704,-7007.31,0.00051232,2]
[356588563,1742735464713,-500.0,0.00051232,120]
[356588564,1742735464723,-500.0,0.00051232,120]
[356588565,1742735464732,-500.0,0.00051232,120]
[356588566,1742735464742,-988.69,0.00051232,120]
[356588567,1742735464752,-1259.58,0.00051232,120]
[356588568,1742735464862,-701.86,0.00051232,120]
[356588569,1742735464871,-500.0,0.00051232,120]
[356588570,1742735464881,-500.0,0.00051232,120]
[356588571,1742735464891,-500.0,0.00051232,120]
[356588572,1742735464901,-500.0,0.00051232,120]
[356588573,1742735464910,-267.34264715,0.00051232,120]
[356588574,1742735464920,-500.0,0.00051232,120]
[356588575,1742735464930,-500.0,0.00051232,120]
[356588576,1742735464939,-500.0,0.00051232,120]
[356588577,1742735464949,-500.0,0.00051232,120]
[356588578,1742735464959,-693.6,0.00051232,120]
[356588579,1742735464968,-647.48,0.00051232,120]
[356588580,1742735464978,-500.0,0.00051232,120]
[356588581,1742735464991,-500.0,0.00051232,120]
[356588582,1742735465001,-1130.06,0.00051232,100]
[356588583,1742735465010,-500.0,0.00051232,120]
[356588584,1742735465019,-798.51,0.00051232,120]
[356588585,1742735465030,-500.0,0.00051232,120]
[356588586,1742735465039,-538.71,0.00051232,120]
[356588587,1742735465049,-1121.42,0.00051232,120]
[356588588,1742735465058,-631.8,0.00051232,120]
[356588589,1742735465069,-500.0,0.00051232,120]
[356588590,1742735465080,-500.0,0.00051232,120]
[356588591,1742735465089,-1260.79,0.00051232,120]
[356588592,1742735465098,-500.0,0.00051232,120]
[356588593,1742735465108,-500.0,0.00051232,120]
[356588594,1742735465117,-500.0,0.00051232,120]
[356588595,1742735465127,-564.6,0.00051232,120]
[356588596,1742735465136,-569.19,0.00051232,120]
[356588597,1742735465146,-500.0,0.00051232,120]
[356588598,1742735465156,-500.0,0.00051232,120]
[356588599,1742735465165,-770.49,0.00051232,120]
[356588600,1742735465175,-500.0,0.00051232,120]
[356588601,1742735465185,-500.0,0.00051232,120]
[356588602,1742735465194,-578.41,0.00051232,120]
[356588603,1742735465204,-657.34,0.00051232,120]
[356588604,1742735465213,-500.0,0.00051232,120]
[356588605,1742735465223,-3577.74,0.00051232,120]
[356588606,1742735465233,-696.03,0.00051232,120]
[356588607,1742735465242,-500.0,0.00051232,120]
[356588608,1742735465251,-500.0,0.00051232,120]
[356588609,1742735465262,-500.0,0.00051232,120]
[356588610,1742735465271,-2374.54770141,0.00051349,68]
[356588611,1742735465281,-150.51,0.0005137,120]
[356588612,1742735465290,-216.96313715,0.000515,35]
[356588613,1742735465300,-1001.0,0.000515,100]
[356588614,1742735465310,-513.38169917,0.00051506,120]
[356588615,1742735465320,-500.0,0.00051506,120]
[356588616,1742735465330,-530.0926933,0.00051506,120]
[356588617,1742735465339,-500.0,0.00051506,120]
[356588618,1742735465349,-500.0,0.00051506,120]
[356588619,1742735465359,-500.0,0.00051506,120]
[356588620,1742735465368,-753.92,0.00051506,7]
[356588621,1742735465377,-280.469228,0.00051506,120]
[356588622,1742735465387,-500.0,0.00051506,120]
[356588623,1742735465397,-500.0,0.00051506,120]
[356588624,1742735465406,-500.0,0.00051506,30]
[356588625,1742735465415,-500.0,0.00051506,120]
[356588626,1742735465425,-500.02,0.00051506,120]
[356588627,1742735465435,-500.0,0.00051506,120]
[356588628,1742735465445,-674.39,0.00051506,120]
[356588629,1742735465455,-500.0,0.00051506,120]
[356588630,1742735465465,-1247.77,0.00051506,120]
[356588631,1742735465473,-500.0,0.00051506,120]
[356588632,1742735465483,-342.04375221,0.00051506,120]
[356588633,1742735465493,-2830.21,0.00051506,120]
[356588634,1742735465503,-500.0,0.00051506,120]
[356588635,1742735465512,-500.0,0.00051506,120]
[356588636,1742735465522,-7007.31,0.00051506,2]
[356588637,1742735465533,-500.0,0.00051506,120]
[356588638,1742735465543,-500.0,0.00051506,120]
[356588639,1742735465552,-500.0,0.00051506,120]
[356588640,1742735465563,-988.69,0.00051506,120]
[356588641,1742735465573,-1259.58,0.00051506,120]
[356588642,1742735465582,-701.86,0.00051506,120]
[356588643,1742735465592,-500.0,0.00051506,120]
[356588644,1742735465602,-500.0,0.00051506,120]
[356588645,1742735465611,-500.0,0.00051506,120]
[356588646,1742735465622,-500.0,0.00051506,120]
[356588647,1742735465632,-500.0,0.00051506,120]
[356588648,1742735465643,-500.0,0.00051506,120]
[356588649,1742735465652,-500.0,0.00051506,120]
[356588650,1742735465663,-536.35447008,0.00051506,120]
[356588651,1742735465672,-693.6,0.00051506,120]
[356588652,1742735465682,-647.48,0.00051506,120]
[356588653,1742735465693,-500.0,0.00051506,120]
[356588654,1742735465703,-500.0,0.00051506,120]
[356588655,1742735465712,-1130.06,0.00051506,100]
[356588656,1742735465723,-500.0,0.00051506,120]
[356588657,1742735465732,-798.51,0.00051506,120]
[356588658,1742735465741,-500.0,0.00051506,120]
[356588659,1742735465751,-538.71,0.00051506,120]
[356588660,1742735465761,-1121.42,0.00051506,120]
[356588661,1742735465770,-631.8,0.00051506,120]
[356588662,1742735465780,-500.0,0.00051506,120]
[356588663,1742735465789,-516.05354312,0.00051506,120]
[356588664,1742735465799,-1260.79,0.00051506,120]
[356588665,1742735465808,-500.0,0.00051506,120]
[356588666,1742735465818,-500.0,0.00051506,120]
[356588667,1742735465828,-500.0,0.00051506,120]
[356588668,1742735465838,-564.6,0.00051506,120]
[356588669,1742735465848,-569.19,0.00051506,120]
[356588670,1742735465858,-500.0,0.00051506,120]
[356588671,1742735465868,-552.02460632,0.00051506,120]
[356588672,1742735465878,-770.49,0.00051506,120]
[356588673,1742735465887,-500.0,0.00051506,120]
[356588674,1742735465898,-500.0,0.00051506,120]
[356588675,1742735465908,-578.41,0.00051506,120]
[356588676,1742735465918,-657.34,0.00051506,120]
[356588677,1742735465928,-500.0,0.00051506,120]
[356588678,1742735465938,-3577.74,0.00051506,120]
[356588679,1742735465948,-696.03,0.00051506,120]
[356588680,1742735465958,-500.0,0.00051506,120]
[356588681,1742735465968,-500.0,0.00051506,120]
[356588682,1742735465978,-523.75591914,0.00051506,120]
[356588683,1742735465991,-5159.8003119,0.00051569,120]
[356588684,1742735466000,-206.67,0.0005157,120]
[356588685,1742735466009,-400.0,0.0005157,7]
[356588686,1742735466018,-294.94631972,0.0005157,30]
[356588687,1742735466028,-157.35684727,0.0005157,30]
[356588688,1742735466039,-161.46373492,0.0005157,30]
[356588689,1742735466049,-153.01241444,0.0005157,30]
[356588690,1742735466058,-4301.03173056,0.00051579,120]
[356588691,1742735466070,-5159.8003119,0.00051579,120]
[356588692,1742735466080,-5159.8003119,0.00051579,120]
[356588693,1742735466090,-5159.8003119,0.00051579,120]
[356588694,1742735466099,-5159.8003119,0.00051579,120]
[356588695,1742735466108,-5159.8003119,0.00051579,120]
[356588696,1742735466118,-5159.8003119,0.00051579,120]
[356588697,1742735466128,-1696371.19695079,0.0005169,120]
[356588698,1742735466137,-379.34051005,0.0005178,120]
[356588699,1742735466147,-500.0,0.0005178,120]
[356588700,1742735466157,-500.0,0.0005178,120]
[356588701,1742735466167,-500.0,0.0005178,120]
[356588702,1742735466176,-753.92,0.0005178,7]
[356588703,1742735466186,-280.469228,0.0005178,120]
[356588704,1742735466195,-421.27041229,0.0005178,120]
[356588705,1742735466205,-480.45427817,0.0005178,120]
[356588706,1742735466214,-500.0,0.0005178,30]
[356588707,1742735466224,-500.0,0.0005178,120]
[356588708,1742735466233,-500.02,0.0005178,120]
[356588709,1742735466243,-500.0,0.0005178,120]
[356588710,1742735466253,-674.39,0.0005178,120]
[356588711,1742735466262,-500.0,0.0005178,120]
[356588712,1742735466271,-1247.77,0.0005178,120]
[356588713,1742735466280,-500.0,0.0005178,120]
[356588714,1742735466290,-2830.21,0.0005178,120]
[356588715,1742735466299,-500.0,0.0005178,120]
[356588716,1742735466308,-500.0,0.0005178,120]
[356588717,1742735466318,-7007.31,0.0005178,2]
[356588718,1742735466330,-500.0,0.0005178,120]
[356588719,1742735466340,-500.0,0.0005178,120]
[356588720,1742735466350,-500.0,0.0005178,120]
[356588721,1742735466360,-988.69,0.0005178,120]
[356588722,1742735466370,-1259.58,0.0005178,120]
[356588723,1742735466380,-701.86,0.0005178,120]
[356588724,1742735466391,-500.0,0.0005178,120]
[356588725,1742735466401,-500.0,0.0005178,120]
[356588726,1742735466410,-500.0,0.0005178,120]
[356588727,1742735466419,-500.0,0.0005178,120]
[356588728,1742735466429,-500.0,0.0005178,120]
[356588729,1742735466438,-500.0,0.0005178,120]
[356588730,1742735466448,-500.0,0.0005178,120]
[356588731,1742735466458,-693.6,0.0005178,120]
[356588732,1742735466468,-647.48,0.0005178,120]
[356588733,1742735466478,-500.0,0.0005178,120]
[356588734,1742735466487,-500.0,0.0005178,120]
[356588735,1742735466497,-1130.06,0.0005178,100]
[356588736,1742735466506,-500.0,0.0005178,120]
[356588737,1742735466516,-798.51,0.0005178,120]
[356588738,1742735466529,-500.0,0.0005178,120]
[356588739,1742735466539,-538.71,0.0005178,120]
[356588740,1742735466548,-1121.42,0.0005178,120]
[356588741,1742735466558,-631.8,0.0005178,120]
[356588742,1742735466567,-552.35033648,0.0005178,120]
[356588743,1742735466577,-1260.79,0.0005178,120]
[356588744,1742735466587,-500.0,0.0005178,120]
[356588745,1742735466597,-500.0,0.0005178,120]
[356588746,1742735466607,-500.0,0.0005178,120]
[356588747,1742735466616,-564.6,0.0005178,120]
[356588748,1742735466626,-569.19,0.0005178,120]
[356588749,1742735466636,-500.0,0.0005178,120]
[356588750,1742735466646,-770.49,0.0005178,120]
[356588751,1742735466656,-500.0,0.0005178,120]
[356588752,1742735466666,-500.0,0.0005178,120]
[356588753,1742735466675,-578.41,0.0005178,120]
[356588754,1742735466686,-657.34,0.0005178,120]
[356588755,1742735466695,-500.0,0.0005178,120]
[356588756,1742735466705,-3577.74,0.0005178,120]
[356588757,1742735466716,-696.03,0.0005178,120]
[356588758,1742735466726,-500.0,0.0005178,120]
[356588759,1742735466737,-556.81954109,0.0005178,120]
[356588760,1742735466748,-416.65276642,0.00051829,2]
[356588761,1742735466757,-1002.0718514,0.000519,46]
[356588762,1742735466767,-50000.0,0.00052,52]
[356588763,1742735466777,-1000000.0,0.00052,120]
[356588764,1742735466787,-250.0,0.00052,10]
[356588765,1742735466796,-1000000.0,0.00052,120]
[356588766,1742735466805,-337.06692925,0.00052,120]
[356588767,1742735466815,-186.16036642,0.00052,120]
[356588768,1742735466825,-250.0,0.00052,10]
[356588769,1742735466835,-500.0,0.00052,120]
[356588770,1742735466844,-160000.0,0.00052,120]
[356588771,1742735466853,-200.0,0.00052,120]
[356588772,1742735466863,-162.73,0.00052054,120]
[356588773,1742735466873,-500.0,0.00052054,120]
[356588774,1742735466883,-500.0,0.00052054,120]
[356588775,1742735466893,-500.0,0.00052054,120]
[356588776,1742735466903,-753.92,0.00052054,7]
[356588777,1742735466914,-280.469228,0.00052054,120]
[356588778,1742735466924,-500.0,0.00052054,30]
[356588779,1742735466934,-500.0,0.00052054,120]
[356588780,1742735466944,-500.02,0.00052054,120]
[356588781,1742735466954,-505.11759612,0.00052054,120]
[356588782,1742735466963,-674.39,0.00052054,120]
[356588783,1742735466974,-500.0,0.00052054,120]
[356588784,1742735466986,-1247.77,0.00052054,120]
[356588785,1742735466997,-500.0,0.00052054,120]
[356588786,1742735467006,-2830.21,0.00052054,120]
[356588787,1742735467016,-378.83571482,0.00052054,120]
[356588788,1742735467027,-299.50823225,0.00052054,120]
[356588789,1742735467036,-7007.31,0.00052054,2]
[356588790,1742735467046,-500.0,0.00052054,120]
[356588791,1742735467056,-500.0,0.00052054,120]
[356588792,1742735467067,-500.0,0.00052054,120]
[356588793,1742735467077,-988.69,0.00052054,120]
[356588794,1742735467087,-1259.58,0.00052054,120]
[356588795,1742735467096,-701.86,0.00052054,120]
[356588796,1742735467106,-500.0,0.00052054,120]
[356588797,1742735467116,-500.0,0.00052054,120]
[356588798,1742735467125,-500.0,0.00052054,120]
[356588799,1742735467135,-167.91896463,0.00052054,120]
[356588800,1742735467144,-500.0,0.00052054,120]
[356588801,1742735467154,-500.0,0.00052054,120]
[356588802,1742735467164,-500.0,0.00052054,120]
[356588803,1742735467173,-693.6,0.00052054,120]
[356588804,1742735467183,-647.48,0.00052054,120]
[356588805,1742735467192,-500.0,0.00052054,120]
[356588806,1742735467202,-500.0,0.00052054,120]
[356588807,1742735467211,-1130.06,0.00052054,100]
[356588808,1742735467221,-500.0,0.00052054,120]
[356588809,1742735467230,-798.51,0.00052054,120]
[356588810,1742735467240,-500.0,0.00052054,120]
[356588811,1742735467249,-538.71,0.00052054,120]
[356588812,1742735467259,-1121.42,0.00052054,120]
[356588813,1742735467269,-631.8,0.00052054,120]
[356588814,1742735467279,-1260.79,0.00052054,120]
[356588815,1742735467288,-500.0,0.00052054,120]
[356588816,1742735467298,-500.0,0.00052054,120]
[356588817,1742735467308,-500.0,0.00052054,120]
[356588818,1742735467319,-564.6,0.00052054,120]
[356588819,1742735467328,-569.19,0.00052054,120]
[356588820,1742735467338,-500.0,0.00052054,120]
[356588821,1742735467347,-770.49,0.00052054,120]
[356588822,1742735467357,-500.0,0.00052054,120]
[356588823,1742735467367,-500.0,0.00052054,120]
[356588824,1742735467377,-578.41,0.00052054,120]
[356588825,1742735467387,-657.34,0.00052054,120]
[356588826,1742735467396,-500.0,0.00052054,120]
[356588827,1742735467406,-3577.74,0.00052054,120]
[356588828,1742735467415,-696.03,0.00052054,120]
[356588829,1742735467425,-500.0,0.00052054,120]
[356588830,1742735467435,-331.66553432,0.00052058,120]
[356588831,1742735467444,-1692.13,0.00052062,2]
[356588832,1742735467453,-500.0,0.00052328,120]
[356588833,1742735467463,-500.0,0.00052328,120]
[356588834,1742735467472,-500.0,0.00052328,120]
[356588835,1742735467482,-753.92,0.00052328,7]
[356588836,1742735467491,-280.469228,0.00052328,120]
[356588837,1742735467500,-500.0,0.00052328,30]
[356588838,1742735467510,-500.0,0.00052328,120]
[356588839,1742735467519,-500.02,0.00052328,120]
[356588840,1742735467529,-674.39,0.00052328,120]
[356588841,1742735467538,-500.0,0.00052328,120]
[356588842,1742735467548,-1247.77,0.00052328,120]
[356588843,1742735467557,-500.0,0.00052328,120]
[356588844,1742735467567,-2830.21,0.00052328,120]
[356588845,1742735467576,-7007.31,0.00052328,2]
[356588846,1742735467585,-500.0,0.00052328,120]
[356588847,1742735467594,-500.0,0.00052328,120]
[356588848,1742735467604,-500.0,0.00052328,120]
[356588849,1742735467613,-988.69,0.00052328,120]
[356588850,1742735467623,-1259.58,0.00052328,120]
[356588851,1742735467632,-701.86,0.00052328,120]
[356588852,1742735467642,-500.0,0.00052328,120]
[356588853,1742735467652,-500.0,0.00052328,120]
[356588854,1742735467661,-500.0,0.00052328,120]
[356588855,1742735467672,-500.0,0.00052328,120]
[356588856,1742735467684,-500.0,0.00052328,120]
[356588857,1742735467694,-500.0,0.00052328,120]
[356588858,1742735467703,-693.6,0.00052328,120]
[356588859,1742735467713,-647.48,0.00052328,120]
[356588860,1742735467722,-500.0,0.00052328,120]
[356588861,1742735467731,-500.0,0.00052328,120]
[356588862,1742735467741,-1130.06,0.00052328,100]
[356588863,1742735467750,-500.0,0.00052328,120]
[356588864,1742735467759,-798.51,0.00052328,120]
[356588865,1742735467769,-500.0,0.00052328,120]
[356588866,1742735467778,-538.71,0.00052328,120]
[356588867,1742735467788,-1121.42,0.00052328,120]
[356588868,1742735467798,-631.8,0.00052328,120]
[356588869,1742735467810,-1260.79,0.00052328,120]
[356588870,1742735467819,-500.0,0.00052328,120]
[356588871,1742735467828,-500.0,0.00052328,120]
[356588872,1742735467838,-500.0,0.00052328,120]
[356588873,1742735467848,-564.6,0.00052328,120]
[356588874,1742735467857,-569.19,0.00052328,120]
[356588875,1742735467866,-500.0,0.00052328,120]
[356588876,1742735467876,-770.49,0.00052328,120]
[356588877,1742735467885,-500.0,0.00052328,120]
[356588878,1742735467895,-500.0,0.00052328,120]
[356588879,1742735467904,-578.41,0.00052328,120]
[356588880,1742735467913,-657.34,0.00052328,120]
[356588881,1742735467922,-499.69329462,0.00052328,120]
[356588882,1742735467932,-3577.74,0.00052328,120]
[356588883,1742735467942,-696.03,0.00052328,120]
[356588884,1742735467951,-500.0,0.00052328,120]
[356588885,1742735467960,-3000.0,0.0005244,30]
[356588886,1742735467970,-500.0,0.000525,120]